bitfinex-derivatives/quotes_ETHF0:USTF0_20250624
["timestamp","ask_amount","ask_price","bid_price","bid_amount"]
[1750787374968,25.709,2463.2,2462.9,12.92533]
[1750787375164,0.81159,2463.0,2462.9,12.92533]
[1750787376165,0.81159,2463.1,2463.0,0.81158]
[1750787376375,25.709,2463.2,2463.1,0.81156]
[1750787376667,25.709,2463.2,2463.1,6.52156]
[1750787377070,26.52053,2463.2,2463.1,5.71]
[1750787381367,33.99261275,2463.2,2463.1,5.71]
[1750787381674,35.41531275,2463.2,2463.1,5.71]
[1750787382069,35.41531275,2463.2,2463.1,4.68244]
[1750787382275,35.41531275,2463.2,2463.1,0.04424742]
[1750787382472,0.81179,2462.4,2462.3,3.2078]
[1750787382670,26.51979,2462.4,2462.3,9.1978]
[1750787382866,0.81179,2462.4,2462.3,5.99]
[1750787383174,34.89249,2462.4,2462.3,5.99]
[1750787384871,45.98235,2462.4,2462.3,5.15334]
[1750787385072,40.14862707,2462.4,2461.6,1.4666]
[1750787385272,2.02974,2462.1,2461.6,8.59865]
[1750787385471,0.81202,2461.7,2461.6,7.7866]
[1750787385667,26.52002,2461.7,2461.6,8.59865]
[1750787385875,26.52002,2461.7,2461.6,7.7866]
[1750787386070,25.708,2461.7,2461.6,8.59865]
[1750787386271,25.708,2461.7,2461.6,7.7866]
[1750787386477,26.52002,2461.7,2461.6,8.59865]
[1750787386776,26.52002,2461.7,2461.6,7.7866]
[1750787386981,26.52002,2461.7,2461.6,6.32]
[1750787387767,26.82787418,2461.7,2461.6,6.32]
[1750787387975,30.03567418,2461.7,2461.6,6.32]
[1750787388179,29.72782,2461.7,2461.6,6.32]
[1750787388579,29.73482,2461.7,2461.6,6.32]
[1750787389081,36.68482,2461.7,2461.6,6.32]
[1750787390186,40.80752,2461.7,2461.6,6.32]
[1750787391071,5.49382,2461.7,2461.6,6.32]
[1750787391272,38.15882,2461.7,2461.6,6.32]
[1750787395278,36.68482,2461.7,2461.6,6.32]
[1750787398783,38.19472,2461.7,2461.6,6.32]
[1750787399581,36.68482,2461.7,2461.6,6.32]
[1750787402579,6.951,2461.7,2461.6,6.32]
[1750787402886,33.48102,2461.7,2461.6,7.13205]
[1750787403387,33.48102,2461.7,2461.6,6.32]
[1750787403981,34.89102,2461.7,2461.6,6.32]
[1750787406284,39.50932,2461.7,2461.6,5.3378]
[1750787406479,2.03035,2461.4,2460.9,1.5037]
[1750787406688,2.03035,2461.4,2460.9,4.14]
[1750787406689,0.81225,2461.0,2460.9,4.14]
[1750787406897,26.53025,2461.0,2460.9,4.14]
[1750787408796,0.81225,2461.0,2460.9,4.14]
[1750787409093,33.48225,2461.0,2460.9,4.14]
[1750787414390,34.55176381,2461.0,2460.9,4.14]
[1750787415694,34.55176381,2461.0,2460.3,2.03121]
[1750787415695,2.03085,2460.8,2460.1,3.2078]
[1750787415887,0.81248,2460.3,2460.2,1.5015]
[1750787416092,33.47648,2460.3,2460.2,5.9715]
[1750787416491,34.54548489,2460.3,2460.2,5.9715]
[1750787416688,34.54547665,2460.3,2460.2,5.9715]
[1750787417098,34.84925774,2460.3,2460.2,4.47]
[1750787417297,34.54547665,2460.3,2460.2,4.47]
[1750787417492,36.00777665,2460.3,2460.2,4.47]
[1750787420597,38.66437665,2460.3,2460.2,4.47]
[1750787420805,43.66437665,2460.3,2460.2,4.47]
[1750787421101,44.06520544,2460.3,2460.2,4.47]
[1750787421304,44.06520544,2460.3,2459.7,9.9078]
[1750787421305,0.81265,2459.8,2459.7,3.2078]
[1750787421506,33.47665,2459.8,2459.7,8.5078]
[1750787421797,2.03127,2460.3,2459.7,8.5078]
[1750787422002,0.81247,2460.4,2460.0,5.23925]
[1750787422203,0.81249,2460.3,2460.2,0.8125]
[1750787422405,0.81247,2460.4,2460.3,0.81248]
[1750787422605,0.81247,2460.4,2460.3,6.05248]
[1750787422798,0.81247,2460.4,2460.3,5.24]
[1750787423103,0.81247,2460.4,2460.3,6.05248]
[1750787423303,0.81247,2460.4,2460.3,5.24]
[1750787424103,0.81247,2460.4,2460.3,6.05248]
[1750787424401,6.948,2460.5,2460.4,0.81245]
[1750787424594,32.664,2460.5,2460.4,8.07785]
[1750787424793,6.948,2460.5,2460.4,13.07785]
[1750787425002,0.81233,2460.8,2460.7,0.81235]
[1750787425205,33.47832,2460.8,2460.7,6.41235]
[1750787425507,33.47832,2460.8,2460.7,5.6]
[1750787425706,33.47832,2460.8,2460.7,7.0596]
[1750787426303,33.47832,2460.8,2460.7,7.87195]
[1750787428007,33.47832,2460.8,2460.7,7.0596]
[1750787428208,33.47832,2460.8,2460.7,7.87195]
[1750787428410,32.666,2460.8,2460.7,7.87195]
[1750787429206,6.949,2460.8,2460.7,12.87195]
[1750787429508,25.713,2461.0,2460.9,0.81226]
[1750787429814,6.948,2461.1,2461.0,0.81225]
[1750787429815,32.661,2461.1,2461.0,0.81225]
[1750787430021,32.661,2461.1,2461.0,6.40225]
[1750787430217,32.661,2461.1,2461.0,7.84305]
[1750787430614,6.948,2461.1,2461.0,7.84305]
[1750787431023,6.948,2461.4,2461.3,0.81212]
[1750787431218,32.659,2461.4,2461.3,6.30212]
[1750787431417,6.948,2461.4,2461.3,6.30212]
[1750787431613,7.76012,2461.4,2461.3,7.82772]
[1750787431922,6.948,2461.4,2461.3,7.82772]
[1750787432416,0.81208,2461.6,2461.5,0.81209]
[1750787432617,6.948,2461.7,2461.6,0.81205]
[1750787432817,6.948,2461.7,2461.6,8.64515]
[1750787433022,25.71,2461.9,2461.8,0.81199]
[1750787433222,25.71,2461.9,2461.8,6.61199]
[1750787433625,0.81195,2461.9,2461.8,6.61199]
[1750787434227,7.75994,2462.0,2461.9,0.81195]
[1750787434524,0.81181,2462.4,2462.3,0.8118]
[1750787434826,0.81184,2462.3,2462.2,0.81183]
[1750787435026,0.81184,2462.3,2462.2,5.78183]
[1750787435324,25.706,2462.3,2462.2,5.78183]
[1750787435625,26.51782,2462.3,2462.2,4.97]
[1750787435822,26.51782,2462.3,2462.2,5.78186]
[1750787436326,26.51782,2462.3,2462.2,4.97]
[1750787437315,33.46382,2462.3,2462.2,4.97]
[1750787440929,0.81182,2462.3,2462.2,5.78186]
[1750787441434,25.696,2462.4,2462.2,5.78186]
[1750787441435,6.946,2462.5,2462.3,0.81181]
[1750787441628,26.50682,2462.4,2462.3,6.04]
[1750787443431,0.81174,2462.6,2462.3,6.04]
[1750787443735,0.81176,2462.5,2462.4,4.01956]
[1750787443920,0.81176,2462.5,2462.4,8.9578]
[1750787444529,0.81176,2462.5,2462.4,9.76959]
[1750787445331,25.691,2462.6,2462.4,9.76956]
[1750787445537,0.81176,2462.6,2462.5,1.4586]
[1750787445835,0.81176,2462.6,2462.5,7.1186]
[1750787448533,0.81176,2462.6,2462.5,5.66]
[1750787452730,33.42376,2462.6,2462.5,5.66]
[1750787453230,34.84246,2462.6,2462.5,6.47176]
[1750787453636,34.84246,2462.6,2462.5,5.66]
[1750787453836,34.84246,2462.6,2462.5,6.47176]
[1750787454037,34.84246,2462.6,2462.5,5.66]
[1750787455341,34.84246,2462.6,2462.5,6.47176]
[1750787456229,34.84246,2462.6,2462.5,5.66]
[1750787456531,2.0294,2462.5,2461.6,1.5325]
[1750787456736,0.81195,2462.0,2461.6,7.7625]
[1750787457035,26.48795,2462.0,2461.7,2.27379]
[1750787457237,26.48795,2462.0,2461.7,7.9218]
[1750787457444,0.81196,2461.9,2461.7,8.73379]
[1750787457638,0.81199,2461.8,2461.7,8.73379]
[1750787457840,0.81198,2461.9,2461.8,0.81199]
[1750787458138,0.81198,2461.9,2461.8,7.62439]
[1750787458337,0.81198,2461.9,2461.8,6.8124]
[1750787459034,0.81198,2461.9,2461.8,5.3]
[1750787459238,0.81198,2461.9,2461.8,6.11199]
[1750787459438,0.81198,2461.9,2461.8,5.3]
[1750787459941,0.81198,2461.9,2461.8,6.11199]
[1750787460241,0.81198,2461.9,2461.8,5.3]
[1750787461538,0.81198,2461.9,2461.8,9.31979]
[1750787461736,0.81198,2461.9,2461.8,10.83669]
[1750787462345,0.81185,2462.3,2462.2,0.81183]
[1750787462641,0.81185,2462.3,2462.2,9.27963]
[1750787463139,0.81181,2462.4,2462.3,0.81178]
[1750787463340,6.931,2462.8,2462.3,11.05196]
[1750787463546,5.23673,2463.1,2462.6,6.19900314]
[1750787463842,0.81166,2462.8,2462.7,1.4586]
[1750787464045,0.81165,2462.9,2462.7,7.0086]
[1750787464239,0.81165,2462.9,2462.8,0.81163]
[1750787464447,0.8116,2463.0,2462.9,0.81162]
[1750787464744,0.8116,2463.0,2462.9,5.45]
[1750787465045,2.2419,2463.0,2462.9,5.45]
[1750787465250,34.8449,2463.0,2462.9,5.45]
[1750787465635,39.8449,2463.0,2462.9,5.45]
[1750787465942,41.1596,2463.0,2462.9,5.45]
[1750787466144,41.15959,2463.0,2462.9,0.08]
[1750787467346,36.15959,2463.0,2462.9,0.08]
[1750787469353,37.23425729,2463.0,2462.9,0.08]
[1750787469750,39.65438621,2463.0,2462.9,0.08]
[1750787470258,39.65495648,2463.0,2462.9,0.08]
[1750787470552,37.23425729,2463.0,2462.9,0.08]
[1750787470752,2.02926,2462.7,2462.4,0.36]
[1750787470956,0.81177,2462.5,2462.4,6.34178]
[1750787471256,1.88643729,2462.5,2462.4,5.53]
[1750787472253,1.07466729,2462.5,2462.4,6.34179]
[1750787472552,1.07466729,2462.5,2462.4,7.85359]
[1750787472553,1.88642729,2462.5,2462.4,7.85359]
[1750787472751,1.07466729,2462.5,2462.4,7.85359]
[1750787472953,0.81176,2462.5,2462.4,7.0418]
[1750787473154,1.88845768,2462.5,2462.4,7.0418]
[1750787473358,1.88845768,2462.5,2462.4,5.53]
[1750787475244,3.30955768,2462.5,2462.4,5.53]
[1750787480758,6.51735768,2462.5,2462.4,5.53]
[1750787480958,8.93814118,2462.5,2462.4,5.53]
[1750787481855,6.51735768,2462.5,2462.4,5.53]
[1750787484363,9.51013248,2462.5,2462.4,5.53]
[1750787492270,9.51124055,2462.5,2462.4,5.53]
[1750787497763,9.51124055,2462.5,2461.9,2.61453]
[1750787497764,2.02948,2462.4,2461.8,1.4303]
[1750787498068,4.01975,2461.9,2461.8,2.2503]
[1750787498259,34.44675575,2461.9,2461.8,2.2503]
[1750787500760,1.07780575,2461.9,2461.8,11.27009]
[1750787500962,6.918,2462.1,2462.0,0.81192]
[1750787501163,6.918,2462.1,2462.0,6.66192]
[1750787501668,7.99586948,2462.1,2462.0,6.66192]
[1750787503072,8.80775948,2462.1,2462.0,6.66192]
[1750787503275,8.80775948,2462.1,2462.0,5.85]
[1750787503673,8.80775948,2462.1,2462.0,7.2555]
[1750787503875,8.80775948,2462.1,2462.0,8.06742]
[1750787504070,8.80775948,2462.1,2462.0,7.2555]
[1750787504270,7.99586948,2462.1,2462.0,8.06742]
[1750787504570,6.898,2462.6,2462.0,14.28526]
[1750787504769,33.34274,2462.6,2462.5,0.81174]
[1750787504970,33.60784834,2462.6,2462.5,6.06174]
[1750787505170,34.41956834,2462.6,2462.5,10.38234]
[1750787505371,33.60784834,2462.6,2462.5,10.38234]
[1750787505569,37.41234314,2462.6,2462.5,9.5706]
[1750787505874,37.41234314,2462.6,2462.5,8.1651]
[1750787506277,34.41956834,2462.6,2462.5,8.1651]
[1750787506476,8.78656834,2462.6,2462.5,8.97686]
[1750787506783,34.41656834,2462.6,2462.5,8.97686]
[1750787507468,33.33972,2462.6,2462.5,8.97686]
[1750787508076,33.33972,2462.6,2462.5,8.1651]
[1750787508471,33.33972,2462.6,2462.5,9.6588]
[1750787508676,33.33972,2462.6,2462.5,10.47056]
[1750787508876,33.33972,2462.6,2462.5,9.6588]
[1750787510076,33.33972,2462.6,2462.5,10.47056]
[1750787511378,33.33972,2462.6,2462.5,9.6588]
[1750787511773,34.41456873,2462.6,2462.5,9.6588]
[1750787512883,34.41456873,2462.6,2462.5,8.1651]
[1750787513181,34.41456873,2462.6,2462.5,8.97686]
[1750787513482,33.33972,2462.6,2462.5,8.97686]
[1750787513872,33.33972,2462.6,2462.5,8.1651]
[1750787514074,0.81172,2462.7,2462.6,0.81172]
[1750787514284,2.0291,2462.9,2462.8,0.81165]
[1750787514285,25.616,2462.9,2462.8,0.81165]
[1750787514476,32.512,2463.0,2462.9,0.81162]
[1750787514676,32.512,2463.0,2462.9,10.13942]
[1750787514981,0.81145,2463.5,2463.1,2.02888]
[1750787515178,0.40709616,2463.6,2463.5,0.81143]
[1750787515370,0.40709616,2463.6,2463.5,10.32923]
[1750787515567,0.81139,2463.6,2463.5,10.3292]
[1750787515769,0.81139,2463.7,2463.6,0.81139]
[1750787515974,0.81139,2463.7,2463.6,6.69139]
[1750787516380,0.81139,2463.7,2463.6,8.12219]
[1750787516976,7.70832,2463.9,2463.8,0.81133]
[1750787517186,30.6328548,2464.1,2463.8,5.4]
[1750787517381,0.8113,2463.9,2463.8,5.4]
[1750787518282,0.8113,2463.9,2463.8,6.21133]
[1750787518476,0.8113,2463.9,2463.8,5.4]
[1750787518980,0.8113,2463.9,2463.8,6.9303]
[1750787519283,0.8113,2463.9,2463.8,7.74163]
[1750787519477,3.8040048,2464.1,2464.0,0.81126]
[1750787519677,30.6245248,2464.5,2463.8,9.7381]
[1750787519873,2.9927748,2464.5,2464.1,3.2078]
[1750787520173,0.8112,2464.2,2464.1,9.38901]
[1750787520372,3.8039448,2464.3,2464.2,0.8112]
[1750787520582,0.81115,2464.4,2464.3,0.81116]
[1750787520775,0.81112,2464.5,2464.4,0.81113]
[1750787520982,0.81112,2464.5,2464.4,7.2903]
[1750787521384,29.4038548,2464.6,2464.4,7.2903]
[1750787521581,7.70705,2464.7,2464.4,10.4981]
[1750787521775,0.81106,2464.6,2464.5,0.81108]
[1750787521974,0.81106,2464.6,2464.5,7.22108]
[1750787522277,0.81106,2464.6,2464.5,6.41]
[1750787522875,0.81106,2464.6,2464.5,5.50968]
[1750787523074,2.028,2464.2,2463.7,3.2078]
[1750787523384,0.81133,2463.8,2463.7,9.4778]
[1750787524176,0.81132,2463.9,2463.7,10.28916]
[1750787524381,34.0188,2464.1,2463.7,9.4778]
[1750787524382,0.81133,2463.8,2463.7,9.4778]
[1750787524579,26.40133,2463.8,2463.7,6.27]
[1750787525479,32.48359539,2463.8,2463.7,6.27]
[1750787530780,33.55138917,2463.8,2463.7,6.27]
[1750787535489,32.48359539,2463.8,2463.7,6.27]
[1750787538598,33.26033,2463.8,2463.7,6.27]
[1750787539388,34.33508351,2463.8,2463.7,6.27]
[1750787539590,40.4173489,2463.8,2463.7,6.27]
[1750787541794,0.81149,2463.3,2463.2,1.5589]
[1750787542097,33.25749,2463.3,2463.2,1.3889]
[1750787542292,36.2481476,2463.3,2463.2,1.3889]
[1750787542594,37.8166476,2463.3,2463.2,1.3889]
[1750787542787,37.8166476,2463.3,2463.2,0.07]
[1750787543697,39.20266231,2463.3,2463.2,0.07]
[1750787543998,37.8166476,2463.3,2463.2,0.07]
[1750787544596,38.89380267,2463.3,2463.2,0.07]
[1750787544797,37.8166476,2463.3,2463.2,0.07]
[1750787545094,0.81149,2463.3,2463.2,0.07]
[1750787545395,33.25249,2463.3,2463.2,0.07]
[1750787545700,33.25249,2463.3,2463.2,1.5603]
[1750787546497,36.2431476,2463.3,2463.2,1.5603]
[1750787546896,37.32040728,2463.3,2463.2,0.07]
[1750787547303,0.81162,2462.9,2462.8,3.02]
[1750787547502,33.24962,2462.9,2462.8,8.9]
[1750787552703,34.32732886,2462.9,2462.8,8.9]
[1750787553004,34.32732886,2462.9,2462.8,7.4469]
[1750787555100,37.31798646,2462.9,2462.8,7.4469]
[1750787559908,34.32732886,2462.9,2462.8,7.4469]
[1750787560102,37.31798646,2462.9,2462.8,7.4469]
[1750787560505,37.31798646,2462.9,2462.8,5.88]
[1750787561507,38.80878646,2462.9,2462.8,5.88]
[1750787562719,37.30298646,2462.9,2462.8,5.88]
[1750787564013,34.31232886,2462.9,2462.8,5.88]
[1750787565013,37.30298646,2462.9,2462.8,5.88]
[1750787573018,8.73932886,2462.9,2462.8,5.88]
[1750787573312,3.2078,2463.4,2462.8,15.8997876]
[1750787573516,1.88720821,2463.3,2463.1,0.81153]
[1750787573713,0.81151,2463.3,2463.2,1.4824]
[1750787574014,6.85,2463.6,2463.4,0.81143]
[1750787574318,32.383,2463.6,2463.5,6.1954]
[1750787574512,8.7359048,2463.6,2463.5,13.32683]
[1750787574713,7.66139,2463.6,2463.5,12.5154]
[1750787577920,10.6520476,2463.6,2463.5,11.033]
[1750787579316,36.1770476,2463.6,2463.5,11.033]
[1750787580831,36.1770476,2463.6,2463.5,7.8252]
[1750787581626,36.1770476,2463.6,2463.5,8.63663]
[1750787582111,36.1770476,2463.6,2463.5,7.8252]
[1750787582317,36.1770476,2463.6,2463.5,8.63663]
[1750787582517,36.1770476,2463.6,2463.5,7.8252]
[1750787583828,36.1770476,2463.6,2463.5,8.63663]
[1750787584525,36.2407991,2463.6,2463.5,7.8252]
[1750787587524,36.1770476,2463.6,2463.5,7.8252]
[1750787590524,36.2407991,2463.6,2463.5,7.8252]
[1750787590832,36.2407991,2463.6,2463.5,6.32]
[1750787595932,33.2501415,2463.6,2463.5,6.32]
[1750787596337,34.8397415,2463.6,2463.5,6.32]
[1750787597831,26.3661415,2463.6,2463.5,9.5278]
[1750787598030,26.3651415,2463.6,2463.5,6.32]
[1750787599130,26.3651415,2463.6,2463.5,9.5278]
[1750787599340,2.4207835,2464.3,2464.0,0.81126]
[1750787599636,0.81116,2464.3,2464.2,4.01898]
[1750787599829,6.821,2464.7,2464.2,3.2078]
[1750787600141,0.81112,2464.5,2464.4,0.81113]
[1750787600333,0.81112,2464.5,2464.4,6.07113]
[1750787600534,0.81108,2464.6,2464.5,0.81107]
[1750787600738,6.821,2464.7,2464.5,9.3578]
[1750787600924,6.821,2464.7,2464.6,0.81106]
[1750787600925,0.81103,2464.7,2464.6,0.81106]
[1750787601237,26.29701,2464.8,2464.7,0.81103]
[1750787601435,0.81098,2464.9,2464.8,0.81098]
[1750787601631,33.11598,2464.9,2464.8,9.0278]
[1750787601834,33.11198,2464.9,2464.8,9.8388]
[1750787602324,33.11097,2464.9,2464.8,9.0278]
[1750787602523,0.81097,2464.9,2464.8,9.0278]
[1750787603234,33.10997,2464.9,2464.8,9.0278]
[1750787604024,36.1006276,2464.9,2464.8,9.0278]
[1750787604231,36.1006276,2464.9,2464.8,5.82]
[1750787605328,3.8016276,2464.9,2464.8,5.82]
[1750787605530,36.0936276,2464.9,2464.8,5.82]
[1750787605731,3.8016276,2464.9,2464.8,5.82]
[1750787605933,36.0926276,2464.9,2464.8,5.82]
[1750787608539,3.8016276,2464.9,2464.8,5.82]
[1750787608840,36.0866276,2464.9,2464.8,6.631]
[1750787609033,36.0866276,2464.9,2464.8,5.82]
[1750787610331,3.2078,2465.4,2464.8,5.82]
[1750787610536,3.2078,2466.4,2465.2,2.9906576]
[1750787610731,35.2726576,2466.3,2465.7,3.2078]
[1750787611035,0.81055,2466.2,2466.1,0.81056]
[1750787611233,32.282,2466.3,2466.2,0.81054]
[1750787611435,49.7286576,2466.5,2466.2,0.81054]
[1750787611436,6.818,2466.5,2466.4,0.81047]
[1750787611740,2.9906576,2466.9,2466.4,6.32]
[1750787612035,0.81037,2466.7,2466.4,9.5278]
[1750787612235,32.279,2466.8,2466.4,9.5278]
[1750787612430,0.81044,2466.5,2466.4,9.5278]
[1750787612630,0.81043,2466.6,2466.4,10.33825]
[1750787612827,0.81044,2466.5,2466.4,9.5278]
[1750787613240,0.81044,2466.5,2466.4,6.32]
[1750787614134,8.2078,2466.5,2466.4,0.47]
[1750787614334,2.02652,2466.0,2465.4,4.01859]
[1750787614538,0.81077,2465.5,2465.4,9.3778]
[1750787616638,0.81077,2465.5,2465.4,6.17]
[1750787616841,9.15047,2465.5,2465.4,6.17]
[1750787618548,15.36671,2465.5,2465.0,1.4511]
[1750787618845,0.8109,2465.1,2465.0,4.81]
[1750787619051,33.0749,2465.1,2465.0,3.9295]
[1750787619341,0.81103,2464.7,2464.6,1.4995]
[1750787619543,0.81103,2464.7,2464.6,6.9395]
[1750787620738,2.26143,2464.7,2464.6,6.9395]
[1750787620943,0.81103,2464.7,2464.6,6.9395]
[1750787621344,7.62703,2464.7,2464.6,6.9395]
[1750787621747,7.62703,2464.7,2464.6,5.44]
[1750787621938,9.09563,2464.7,2464.6,5.44]
[1750787622535,17.30343,2464.7,2464.6,3.56845]
[1750787622739,0.81116,2464.3,2464.2,1.4759]
[1750787622941,33.07416,2464.3,2464.2,5.6259]
[1750787625149,33.07416,2464.3,2464.2,9.6449]
[1750787625150,33.07516,2464.3,2464.2,9.6449]
[1750787625449,33.07516,2464.3,2464.2,8.8337]
[1750787626143,33.07516,2464.3,2464.2,5.6259]
[1750787627245,33.07516,2464.3,2464.2,4.15]
[1750787627738,34.59806,2464.3,2464.2,4.15]
[1750787628848,39.59806,2464.3,2464.2,4.15]
[1750787629247,39.59806,2464.3,2464.2,3.28116]
[1750787629551,0.81136,2463.7,2463.6,1.5179]
[1750787629743,33.05636,2463.7,2463.6,7.3179]
[1750787630246,32.245,2463.7,2463.6,8.12929]
[1750787631144,33.05636,2463.7,2463.6,8.12929]
[1750787631344,32.245,2463.7,2463.6,8.12929]
[1750787631546,33.05636,2463.7,2463.6,8.12929]
[1750787631947,32.245,2463.7,2463.6,8.12929]
[1750787632250,32.245,2463.7,2463.6,9.66509]
[1750787632644,32.245,2463.7,2463.6,14.66509]
[1750787632955,6.799,2464.0,2463.9,0.81127]
[1750787633151,32.245,2464.0,2463.9,9.87907]
[1750787633454,33.05626,2464.0,2463.9,9.87907]
[1750787633947,0.81126,2464.0,2463.9,9.87907]
[1750787634149,26.25726,2464.0,2463.9,9.87907]
[1750787634951,25.446,2464.0,2463.9,9.87907]
[1750787635154,26.25726,2464.0,2463.9,9.87907]
[1750787635555,26.25726,2464.0,2463.9,11.33117]
[1750787636448,26.25726,2464.0,2463.9,10.5199]
[1750787636752,26.25725,2464.1,2464.0,0.81126]
[1750787636949,6.07141204,2465.8,2464.9,0.81096]
[1750787637144,6.07141204,2465.5,2465.2,3.2078]
[1750787637345,0.81083,2465.3,2465.2,5.23]
[1750787637546,0.81092,2465.1,2464.9,3.2078]
[1750787637746,25.64,2465.1,2464.9,6.2]
[1750787637945,0.81093,2465.0,2464.9,6.2]
[1750787638149,26.45091,2465.1,2464.9,7.01097]
[1750787638452,25.64,2465.1,2465.0,0.81093]
[1750787638660,25.64,2465.1,2465.0,1.68093]
[1750787639757,26.4509,2465.1,2465.0,1.68093]
[1750787640352,27.119,2465.1,2465.0,1.68093]
[1750787640551,5.56326,2465.9,2465.1,2.02726]
[1750787640751,32.47,2465.8,2465.7,0.8107]
[1750787640951,6.799,2465.8,2465.7,5.62]
[1750787641157,1.479,2466.2,2465.7,5.62]
[1750787641455,34.76754,2466.2,2466.1,0.81057]
[1750787641757,33.957,2466.2,2466.1,6.17057]
[1750787641957,33.957,2466.2,2466.1,5.36]
[1750787641958,34.76754,2466.2,2466.1,5.36]
[1750787642355,33.957,2466.2,2466.1,6.17057]
[1750787642554,32.478,2466.2,2466.1,6.17057]
[1750787643257,0.81042,2466.6,2466.1,5.36]
[1750787643461,6.798,2466.5,2466.4,0.81047]
[1750787643670,6.798,2466.5,2466.4,6.59047]
[1750787643855,7.60844,2466.5,2466.4,5.78]
[1750787644660,0.81044,2466.5,2466.4,5.78]
[1750787644856,8.2078,2466.5,2465.9,3.2078]
[1750787645062,0.8106,2466.0,2465.9,8.0678]
[1750787645256,33.2736,2466.0,2465.9,8.0678]
[1750787645458,39.34501204,2466.0,2465.9,4.86]
[1750787645854,33.2736,2466.0,2465.9,4.86]
[1750787646160,32.469,2466.4,2465.9,8.0678]
[1750787646357,0.81055,2466.2,2466.0,0.81058]
[1750787646552,0.81055,2466.2,2466.0,6.73058]
[1750787646866,0.81057,2466.1,2466.0,6.73058]
[1750787647356,0.81057,2466.1,2466.0,5.92]
[1750787647861,32.58998204,2466.1,2466.0,5.92]
[1750787648468,34.10808204,2466.1,2466.0,5.92]
[1750787649158,2.02662,2465.9,2465.3,4.7354]
[1750787649461,0.8108,2465.4,2465.3,10.3554]
[1750787650058,26.51079,2465.5,2465.3,11.16622]
[1750787650256,0.8108,2465.4,2465.3,10.3554]
[1750787651173,7.6068,2465.4,2465.3,10.3554]
[1750787652465,7.6068,2465.4,2465.3,11.16623]
[1750787652862,7.6068,2465.4,2465.3,10.3554]
[1750787655270,9.0211,2465.4,2465.3,5.62]
[1750787655461,10.4435,2465.4,2465.3,5.62]
[1750787657467,10.75992835,2465.4,2465.3,5.62]
[1750787658161,10.4435,2465.4,2465.3,5.62]
[1750787658356,15.4435,2465.4,2465.3,4.78308]
[1750787658566,0.81106,2464.6,2464.5,3.2078]
[1750787658867,33.38506,2464.7,2464.5,8.1878]
[1750787659065,33.38506,2464.7,2464.5,8.99889]
[1750787659565,33.38506,2464.7,2464.5,4.98]
[1750787659566,0.81106,2464.6,2464.5,4.98]
[1750787659766,2.27796,2464.6,2464.5,4.98]
[1750787661671,0.81116,2464.3,2464.2,3.2078]
[1750787661873,33.40816,2464.3,2464.2,8.4878]
[1750787662376,33.40816,2464.3,2464.2,5.28]
[1750787662980,34.92086,2464.3,2464.2,5.28]
[1750787663574,39.92086,2464.3,2464.2,4.45537]
[1750787663878,0.81149,2463.3,2462.9,3.2078]
[1750787664173,0.81159,2463.0,2462.9,8.5578]
[1750787664372,33.42959,2463.0,2462.9,5.35]
[1750787666270,33.42959,2463.0,2462.9,4.48535]
[1750787666976,34.93349,2463.0,2462.9,4.48535]
[1750787667483,34.93349,2463.0,2462.9,3.65931]
[1750787667669,2.02919,2462.8,2462.2,3.2078]
[1750787667869,27.2242,2462.7,2462.2,10.35965]
[1750787668067,0.81181,2462.4,2462.2,10.35965]
[1750787668272,26.48182,2462.3,2462.2,9.5478]
[1750787668469,32.594,2462.3,2462.2,9.5478]
[1750787668679,32.594,2462.3,2462.2,10.35965]
[1750787670978,33.40582,2462.3,2462.2,10.35965]
[1750787671379,33.40582,2462.3,2462.2,6.34]
[1750787672777,40.05087028,2462.3,2462.2,6.34]
[1750787672977,2.02974,2462.1,2461.6,3.2078]
[1750787673185,0.81202,2461.7,2461.6,8.3678]
[1750787673585,33.42101,2461.8,2461.6,8.3678]
[1750787673785,33.42101,2461.8,2461.7,0.81202]
[1750787673991,33.42101,2461.8,2461.7,7.04202]
[1750787674189,0.81197,2461.9,2461.8,0.81197]
[1750787674382,33.42297,2461.9,2461.8,6.02]
[1750787676988,33.42297,2461.9,2461.8,6.83199]
[1750787677196,33.42297,2461.9,2461.8,6.02]
[1750787677386,32.611,2461.9,2461.8,6.83199]
[1750787677588,33.42295,2461.9,2461.8,6.02]
[1750787677982,33.42295,2461.9,2461.8,6.83199]
[1750787678688,32.563,2461.9,2461.8,6.83199]
[1750787679093,33.37495,2461.9,2461.8,6.83199]
[1750787679890,33.37495,2461.9,2461.8,6.02]
[1750787681297,0.81195,2461.9,2461.8,6.83199]
[1750787681597,0.81193,2462.0,2461.9,0.81193]
[1750787681801,0.81188,2462.2,2462.1,0.81188]
[1750787681984,25.638,2462.6,2462.1,6.25]
[1750787682184,32.587,2462.7,2462.6,0.81172]
[1750787682394,32.587,2462.7,2462.6,6.93172]
[1750787682589,32.587,2462.7,2462.6,6.12]
[1750787682792,33.39869,2462.7,2462.6,6.93172]
[1750787682996,32.587,2462.7,2462.6,6.93172]
[1750787683498,33.39869,2462.7,2462.6,6.12]
[1750787684096,38.39869,2462.7,2462.6,6.12]
[1750787684301,42.86379,2462.7,2462.6,6.12]